[Event "*** Titled Tuesday Blitz"]
[Site "Chess.com"]
[Date "2020.04.28"]
[Round "3"]
[White "noblerone"]
[Black "ALEXJR20"]
[Result "1-0"]
[WhiteElo "2421"]
[BlackElo "2206"]
[TimeControl "180+1"]
[EndTime "10:30:04 PDT"]
[Termination "noblerone won by checkmate"]

1. d4 {[%clk 0:03:00.9]} 1... Nf6 {[%clk 0:02:40.3]} 2. Nf3 {[%clk 0:03:00.8]}
2... d5 {[%clk 0:02:38.1]} 3. Bg5 {[%clk 0:03:00.5]} 3... e6 {[%clk 0:02:38.1]}
4. Nbd2 {[%clk 0:03:00.1]} 4... Be7 {[%clk 0:02:38.4]} 5. e3 {[%clk 0:03:00.4]}
5... b6 {[%clk 0:02:37.8]} 6. Bd3 {[%clk 0:02:59.5]} 6... Nbd7 {[%clk
0:02:37.8]} 7. O-O {[%clk 0:02:57.5]} 7... h6 {[%clk 0:02:37.2]} 8. Bh4 {[%clk
0:02:57.4]} 8... O-O {[%clk 0:02:36.7]} 9. c3 {[%clk 0:02:56.1]} 9... a5 {[%clk
0:02:36.5]} 10. Qe2 {[%clk 0:02:52.4]} 10... c5 {[%clk 0:02:35.7]} 11. Ne5
{[%clk 0:02:51.2]} 11... c4 {[%clk 0:02:31]} 12. Bc2 {[%clk 0:02:51.2]} 12...
Bb7 {[%clk 0:02:30.5]} 13. f4 {[%clk 0:02:50.8]} 13... b5 {[%clk 0:02:29.2]} 14.
g4 {[%clk 0:02:39.7]} 14... Ne8 {[%clk 0:02:15.9]} 15. Bxe7 {[%clk 0:02:37.5]}
15... Qxe7 {[%clk 0:02:16.8]} 16. Rf2 {[%clk 0:02:31.9]} 16... b4 {[%clk
0:02:12.3]} 17. Rg2 {[%clk 0:02:27.1]} 17... Nd6 {[%clk 0:02:10.8]} 18. g5
{[%clk 0:02:19.6]} 18... hxg5 {[%clk 0:02:07]} 19. Rxg5 {[%clk 0:02:19.1]} 19...
Nf6 {[%clk 0:02:04.4]} 20. Qg2 {[%clk 0:02:10.4]} 20... g6 {[%clk 0:01:39.6]}
21. Nxg6 {[%clk 0:01:35.7]} 21... fxg6 {[%clk 0:01:40.5]} 22. Rxg6+ {[%clk
0:01:36.6]} 22... Kh8 {[%clk 0:01:36.7]} 23. Rh6+ {[%clk 0:01:35.6]} 23... Nh7
{[%clk 0:01:36.1]} 24. Rxh7+ {[%clk 0:01:35]} 24... Qxh7 {[%clk 0:01:37]} 25.
Bxh7 {[%clk 0:01:35.4]} 25... Kxh7 {[%clk 0:01:37.9]} 26. Qh3+ {[%clk
0:01:33.9]} 26... Kg7 {[%clk 0:01:36.6]} 27. Kf2 {[%clk 0:01:23]} 27... bxc3
{[%clk 0:01:35.3]} 28. Rg1+ {[%clk 0:01:22]} 28... Kf6 {[%clk 0:01:31.4]} 29.
Qh4+ {[%clk 0:01:17.2]} 29... Kf7 {[%clk 0:01:26.3]} 30. Qh7+ {[%clk 0:01:07.8]}
30... Ke8 {[%clk 0:01:16.2]} 31. bxc3 {[%clk 0:01:05.4]} 31... Rf7 {[%clk
0:01:09.4]} 32. Rg8+ {[%clk 0:00:55.4]} 32... Ke7 {[%clk 0:01:07.2]} 33. Qh4+
{[%clk 0:00:53.4]} 33... Kd7 {[%clk 0:01:04.1]} 34. Rxa8 {[%clk 0:00:46.2]}
34... Bxa8 {[%clk 0:01:05]} 35. Qh8 {[%clk 0:00:46.7]} 35... Bb7 {[%clk
0:01:03.8]} 36. Qb8 {[%clk 0:00:46.5]} 36... Re7 {[%clk 0:00:58.4]} 37. Nf3
{[%clk 0:00:44.6]} 37... Ne4+ {[%clk 0:00:46.5]} 38. Ke1 {[%clk 0:00:44.8]}
38... Kc6 {[%clk 0:00:43.8]} 39. Ne5+ {[%clk 0:00:40.4]} 39... Kb6 {[%clk
0:00:44.2]} 40. Qd8+ {[%clk 0:00:40.4]} 40... Rc7 {[%clk 0:00:43.4]} 41. Nd7+
{[%clk 0:00:40.2]} 41... Kc6 {[%clk 0:00:40.1]} 42. Nc5 {[%clk 0:00:32.3]} 42...
Nxc3 {[%clk 0:00:33.8]} 43. Nxe6 {[%clk 0:00:22.8]} 43... Rd7 {[%clk 0:00:31]}
44. Qxa5 {[%clk 0:00:21.1]} 44... Ne4 {[%clk 0:00:29.8]} 45. Nc5 {[%clk
0:00:19.1]} 45... Re7 {[%clk 0:00:27.4]} 46. Nxe4 {[%clk 0:00:18.6]} 46... Rxe4
{[%clk 0:00:26.4]} 47. Qc5+ {[%clk 0:00:19]} 47... Kd7 {[%clk 0:00:25]} 48. Kd2
{[%clk 0:00:19.9]} 48... Bc6 {[%clk 0:00:24.2]} 49. h4 {[%clk 0:00:19.4]} 49...
Re6 {[%clk 0:00:24.1]} 50. f5 {[%clk 0:00:19]} 50... Rh6 {[%clk 0:00:22.8]} 51.
Qa7+ {[%clk 0:00:19]} 51... Kd6 {[%clk 0:00:20.8]} 52. Qg7 {[%clk 0:00:16.8]}
52... Rh5 {[%clk 0:00:17.5]} 53. Qf6+ {[%clk 0:00:15.8]} 53... Kc7 {[%clk
0:00:15]} 54. Qf7+ {[%clk 0:00:16]} 54... Kb6 {[%clk 0:00:15.3]} 55. Qxh5 {[%clk
0:00:16.9]} 55... c3+ {[%clk 0:00:14.6]} 56. Kxc3 {[%clk 0:00:17]} 56... Kb5
{[%clk 0:00:15.5]} 57. Qg5 {[%clk 0:00:17]} 57... Ka5 {[%clk 0:00:16.4]} 58. f6
{[%clk 0:00:17.8]} 58... Bb5 {[%clk 0:00:17.3]} 59. h5 {[%clk 0:00:18.4]} 59...
Ka4 {[%clk 0:00:18.2]} 60. h6 {[%clk 0:00:19.3]} 60... Ka3 {[%clk 0:00:19.1]}
61. h7 {[%clk 0:00:19.8]} 61... Bc4 {[%clk 0:00:20]} 62. h8=Q {[%clk 0:00:20.1]}
62... Kxa2 {[%clk 0:00:20.9]} 63. Qa8+ {[%clk 0:00:20]} 63... Kb1 {[%clk
0:00:21.8]} 64. Qg1+ {[%clk 0:00:20]} 64... Bf1 {[%clk 0:00:22.3]} 65. Qxf1#
{[%clk 0:00:19.8]} 1-0

[Event "*** Titled Tuesday Blitz"]
[Site "Chess.com"]
[Date "2020.04.28"]
[Round "3"]
[White "RaunakSadhwani2005"]
[Black "Toro1234"]
[Result "1-0"]
[WhiteElo "2889"]
[BlackElo "2642"]
[TimeControl "180+1"]
[EndTime "10:30:05 PDT"]
[Termination "RaunakSadhwani2005 won on time"]

1. e4 {[%clk 0:02:59.9]} 1... d6 {[%clk 0:03:00]} 2. d4 {[%clk 0:02:59.1]} 2...
Nf6 {[%clk 0:03:00.1]} 3. Nc3 {[%clk 0:02:59.1]} 3... e5 {[%clk 0:03:00.5]} 4.
Nf3 {[%clk 0:02:53.1]} 4... Nbd7 {[%clk 0:02:59.8]} 5. Bc4 {[%clk 0:02:52.4]}
5... Be7 {[%clk 0:02:58.3]} 6. O-O {[%clk 0:02:51.7]} 6... Nb6 {[%clk
0:02:54.8]} 7. Be2 {[%clk 0:02:44]} 7... exd4 {[%clk 0:02:52.4]} 8. Nxd4 {[%clk
0:02:42.6]} 8... O-O {[%clk 0:02:52.5]} 9. a4 {[%clk 0:02:36.2]} 9... a5 {[%clk
0:02:51.5]} 10. f4 {[%clk 0:02:35.7]} 10... Re8 {[%clk 0:02:51.8]} 11. Bf3
{[%clk 0:02:32.8]} 11... c6 {[%clk 0:02:51.7]} 12. Be3 {[%clk 0:02:31.2]} 12...
Nc4 {[%clk 0:02:27.6]} 13. Bc1 {[%clk 0:02:21.2]} 13... Qb6 {[%clk 0:02:27.4]}
14. b3 {[%clk 0:02:13.2]} 14... Ne5 {[%clk 0:02:17.4]} 15. Be2 {[%clk 0:01:45]}
15... Bf8 {[%clk 0:02:03.3]} 16. Kh1 {[%clk 0:01:41.8]} 16... Ned7 {[%clk
0:02:02.8]} 17. Bf3 {[%clk 0:01:33.6]} 17... Nc5 {[%clk 0:01:52.5]} 18. Re1
{[%clk 0:01:33.7]} 18... Qb4 {[%clk 0:01:46.2]} 19. Bb2 {[%clk 0:01:14.8]} 19...
Ne6 {[%clk 0:01:25.9]} 20. Nde2 {[%clk 0:01:05.8]} 20... Nc5 {[%clk 0:01:21.8]}
21. Ng3 {[%clk 0:01:00]} 21... Be6 {[%clk 0:01:09.3]} 22. Na2 {[%clk 0:00:46.9]}
22... Qb6 {[%clk 0:01:07.3]} 23. f5 {[%clk 0:00:47.2]} 23... Bd7 {[%clk
0:01:01]} 24. Bxf6 {[%clk 0:00:46.2]} 24... gxf6 {[%clk 0:01:00.6]} 25. Nh5
{[%clk 0:00:47.1]} 25... Be7 {[%clk 0:00:57.9]} 26. Qd2 {[%clk 0:00:44.1]} 26...
Kh8 {[%clk 0:00:52.8]} 27. Qh6 {[%clk 0:00:43.5]} 27... Rg8 {[%clk 0:00:52.3]}
28. Re3 {[%clk 0:00:33.8]} 28... Qd8 {[%clk 0:00:48.7]} 29. Be2 {[%clk
0:00:28.3]} 29... Qf8 {[%clk 0:00:47.4]} 30. Qf4 {[%clk 0:00:28.8]} 30... Be8
{[%clk 0:00:40.6]} 31. Rh3 {[%clk 0:00:28.5]} 31... Nd7 {[%clk 0:00:38.8]} 32.
Nc3 {[%clk 0:00:23.7]} 32... Ne5 {[%clk 0:00:38.6]} 33. Rf1 {[%clk 0:00:21.1]}
33... Rg5 {[%clk 0:00:38.1]} 34. Nd1 {[%clk 0:00:19.8]} 34... Qg8 {[%clk
0:00:35.7]} 35. Ng3 {[%clk 0:00:19.1]} 35... d5 {[%clk 0:00:33.3]} 36. exd5
{[%clk 0:00:19.4]} 36... cxd5 {[%clk 0:00:33.3]} 37. Ne3 {[%clk 0:00:19.7]}
37... Bc6 {[%clk 0:00:32.2]} 38. Qd4 {[%clk 0:00:18.9]} 38... Qf8 {[%clk
0:00:25.2]} 39. Bb5 {[%clk 0:00:18.6]} 39... Bc5 {[%clk 0:00:24.2]} 40. Qh4
{[%clk 0:00:18]} 40... Qg8 {[%clk 0:00:18.7]} 41. Nh5 {[%clk 0:00:18.2]} 41...
Be7 {[%clk 0:00:17.3]} 42. Bxc6 {[%clk 0:00:17.9]} 42... bxc6 {[%clk 0:00:16.6]}
43. Rd1 {[%clk 0:00:13.4]} 43... Rd8 {[%clk 0:00:14.6]} 44. Ng3 {[%clk 0:00:12]}
44... Qg7 {[%clk 0:00:11.9]} 45. Qf4 {[%clk 0:00:12.2]} 45... Qf8 {[%clk
0:00:11.2]} 46. c4 {[%clk 0:00:12]} 46... dxc4 {[%clk 0:00:08.1]} 47. Rxd8
{[%clk 0:00:11.7]} 47... Qxd8 {[%clk 0:00:07.2]} 48. Qh4 {[%clk 0:00:11.7]}
48... Qg8 {[%clk 0:00:05.6]} 49. bxc4 {[%clk 0:00:11.6]} 49... Bc5 {[%clk
0:00:01.5]} 50. Nh5 {[%clk 0:00:11.1]} 1-0

[Event "*** Titled Tuesday Blitz"]
[Site "Chess.com"]
[Date "2020.04.28"]
[Round "3"]
[White "Kostya26"]
[Black "sofaceindisguise"]
[Result "1-0"]
[WhiteElo "2414"]
[BlackElo "2586"]
[TimeControl "180+1"]
[EndTime "10:30:05 PDT"]
[Termination "Kostya26 won by resignation"]

1. e4 {[%clk 0:03:00.9]} 1... e5 {[%clk 0:02:59.5]} 2. Nf3 {[%clk 0:02:59.9]}
2... Nc6 {[%clk 0:02:59.3]} 3. d4 {[%clk 0:02:58.1]} 3... exd4 {[%clk
0:02:58.1]} 4. c3 {[%clk 0:02:58.1]} 4... Nf6 {[%clk 0:02:56.8]} 5. e5 {[%clk
0:02:57.9]} 5... Ne4 {[%clk 0:02:56.2]} 6. cxd4 {[%clk 0:02:56.1]} 6... d5
{[%clk 0:02:56.4]} 7. Bd3 {[%clk 0:02:52.3]} 7... Bb4+ {[%clk 0:02:54.2]} 8.
Nbd2 {[%clk 0:02:51.4]} 8... f5 {[%clk 0:02:52.2]} 9. exf6 {[%clk 0:02:47.8]}
9... Qxf6 {[%clk 0:02:52.2]} 10. O-O {[%clk 0:02:45.3]} 10... Bf5 {[%clk
0:02:51.6]} 11. Qe2 {[%clk 0:02:31.3]} 11... O-O-O {[%clk 0:02:38]} 12. Nxe4
{[%clk 0:02:25.6]} 12... dxe4 {[%clk 0:02:27.9]} 13. Bxe4 {[%clk 0:02:22.5]}
13... Bxe4 {[%clk 0:02:19.7]} 14. Qxe4 {[%clk 0:02:20.9]} 14... Nxd4 {[%clk
0:02:19.6]} 15. Qg4+ {[%clk 0:02:04.1]} 15... Qf5 {[%clk 0:02:08]} 16. Qxf5+
{[%clk 0:01:48.2]} 16... Nxf5 {[%clk 0:02:08.9]} 17. Bg5 {[%clk 0:01:43.7]}
17... Rd5 {[%clk 0:02:06.9]} 18. a3 {[%clk 0:01:37.7]} 18... Bc5 {[%clk
0:02:03]} 19. Rad1 {[%clk 0:01:32.7]} 19... Rxd1 {[%clk 0:01:58.2]} 20. Rxd1
{[%clk 0:01:31.7]} 20... Nd6 {[%clk 0:01:55.3]} 21. b4 {[%clk 0:01:22.5]} 21...
Bb6 {[%clk 0:01:54.6]} 22. Bh4 {[%clk 0:01:00.5]} 22... Re8 {[%clk 0:01:53.8]}
23. Kf1 {[%clk 0:00:58.7]} 23... Ne4 {[%clk 0:01:46.7]} 24. Ng5 {[%clk
0:00:42.6]} 24... Bxf2 {[%clk 0:01:35.9]} 25. Bxf2 {[%clk 0:00:17.6]} 25... Nxg5
{[%clk 0:01:34.6]} 26. Rd5 {[%clk 0:00:16.5]} 26... Ne4 {[%clk 0:01:32.2]} 27.
Bd4 {[%clk 0:00:16.2]} 27... g6 {[%clk 0:01:28]} 28. h4 {[%clk 0:00:12.5]} 28...
b6 {[%clk 0:01:27.9]} 29. Bb2 {[%clk 0:00:07.8]} 29... Rf8+ {[%clk 0:01:24.1]}
30. Kg1 {[%clk 0:00:07.6]} 30... Rf5 {[%clk 0:01:22.3]} 31. Rxf5 {[%clk
0:00:03.9]} 31... gxf5 {[%clk 0:01:21.8]} 32. Kf1 {[%clk 0:00:04.3]} 32... Kd7
{[%clk 0:01:22.1]} 33. Ke2 {[%clk 0:00:04.7]} 33... Ke6 {[%clk 0:01:22.6]} 34.
Kf3 {[%clk 0:00:05.2]} 34... c5 {[%clk 0:01:22.6]} 35. bxc5 {[%clk 0:00:04.6]}
35... bxc5 {[%clk 0:01:23.5]} 36. Kf4 {[%clk 0:00:05.2]} 36... h5 {[%clk
0:01:16.3]} 37. Bc1 {[%clk 0:00:02.9]} 37... c4 {[%clk 0:01:16]} 38. Ke3 {[%clk
0:00:02.5]} 38... Kd5 {[%clk 0:01:15.9]} 39. Bb2 {[%clk 0:00:03.1]} 39... c3
{[%clk 0:01:15.9]} 40. Bc1 {[%clk 0:00:03.4]} 40... Kc4 {[%clk 0:01:14.2]} 41.
Kf4 {[%clk 0:00:03.8]} 41... Kd3 {[%clk 0:00:58.9]} 42. Kxf5 {[%clk 0:00:04.1]}
42... Nd2 {[%clk 0:00:58.5]} 43. g4 {[%clk 0:00:03]} 43... hxg4 {[%clk
0:00:57.4]} 44. Kxg4 {[%clk 0:00:03.9]} 44... Kc2 {[%clk 0:00:57.7]} 45. h5
{[%clk 0:00:03]} 45... Kxc1 {[%clk 0:00:57.3]} 46. h6 {[%clk 0:00:03.8]} 46...
Kd1 {[%clk 0:00:47.3]} 47. h7 {[%clk 0:00:03.7]} 47... c2 {[%clk 0:00:48.2]} 48.
h8=Q {[%clk 0:00:03.8]} 48... c1=Q {[%clk 0:00:48.6]} 49. Qh1+ {[%clk
0:00:03.3]} 49... Kc2 {[%clk 0:00:47.4]} 50. Qc6+ {[%clk 0:00:03.1]} 50... Kd3
{[%clk 0:00:44.7]} 51. Qxc1 {[%clk 0:00:02.5]} 51... Nb3 {[%clk 0:00:40.2]} 52.
Qd1+ {[%clk 0:00:02.5]} 52... Kc3 {[%clk 0:00:40.2]} 53. Qd7 {[%clk 0:00:03.4]}
53... a5 {[%clk 0:00:39.6]} 54. Qb5 {[%clk 0:00:03.1]} 54... Kb2 {[%clk
0:00:38.7]} 55. a4 {[%clk 0:00:03]} 55... Ka3 {[%clk 0:00:39]} 56. Kf4 {[%clk
0:00:03.1]} 56... Nd4 {[%clk 0:00:36.3]} 57. Qc5+ {[%clk 0:00:02.6]} 57... Kxa4
{[%clk 0:00:35.8]} 58. Qxd4+ {[%clk 0:00:02.6]} 58... Kb3 {[%clk 0:00:36.7]} 59.
Qa1 {[%clk 0:00:02.7]} 59... a4 {[%clk 0:00:37.6]} 60. Ke3 {[%clk 0:00:03.5]}
60... a3 {[%clk 0:00:38.1]} 61. Ke4 {[%clk 0:00:04.2]} 61... a2 {[%clk
0:00:38.6]} 62. Kd5 {[%clk 0:00:04.5]} 62... Kc2 {[%clk 0:00:39.5]} 63. Ke4
{[%clk 0:00:04.9]} 63... Kb3 {[%clk 0:00:40.4]} 64. Kf3 {[%clk 0:00:05.4]} 64...
Ka3 {[%clk 0:00:40.5]} 65. Ke2 {[%clk 0:00:06.3]} 65... Kb3 {[%clk 0:00:41.4]}
66. Kd2 {[%clk 0:00:06.6]} 1-0

[Event "*** Titled Tuesday Blitz"]
[Site "Chess.com"]
[Date "2020.04.28"]
[Round "3"]
[White "almo64"]
[Black "MaxVavulin"]
[Result "1-0"]
[WhiteElo "2811"]
[BlackElo "2602"]
[TimeControl "180+1"]
[EndTime "10:30:06 PDT"]
[Termination "almo64 won on time"]

1. e4 {[%clk 0:02:20]} 1... e5 {[%clk 0:02:59.2]} 2. Nf3 {[%clk 0:02:19]} 2...
Nc6 {[%clk 0:02:59.1]} 3. Bb5 {[%clk 0:02:19.5]} 3... a6 {[%clk 0:02:59]} 4. Ba4
{[%clk 0:02:19.2]} 4... Nge7 {[%clk 0:02:55.5]} 5. O-O {[%clk 0:02:16.1]} 5...
g6 {[%clk 0:02:55]} 6. d4 {[%clk 0:02:16.2]} 6... exd4 {[%clk 0:02:53.3]} 7.
Nxd4 {[%clk 0:02:15.3]} 7... Bg7 {[%clk 0:02:49.6]} 8. Nxc6 {[%clk 0:02:14.8]}
8... bxc6 {[%clk 0:02:35.9]} 9. Nc3 {[%clk 0:02:15.1]} 9... O-O {[%clk
0:02:35.1]} 10. Bg5 {[%clk 0:02:13.3]} 10... h6 {[%clk 0:02:34.5]} 11. Be3
{[%clk 0:02:11.9]} 11... d6 {[%clk 0:02:20.6]} 12. Bd4 {[%clk 0:02:04.4]} 12...
Be6 {[%clk 0:02:12.1]} 13. Bxg7 {[%clk 0:02:03.6]} 13... Kxg7 {[%clk 0:02:11.5]}
14. f4 {[%clk 0:02:01.6]} 14... f5 {[%clk 0:02:07.9]} 15. Qd4+ {[%clk 0:02:01]}
15... Kh7 {[%clk 0:02:07.1]} 16. Rae1 {[%clk 0:02:01.2]} 16... c5 {[%clk
0:01:54.5]} 17. Qe3 {[%clk 0:01:57.6]} 17... Bd7 {[%clk 0:01:42.4]} 18. e5
{[%clk 0:01:52]} 18... Bxa4 {[%clk 0:01:19.9]} 19. exd6 {[%clk 0:01:51.6]} 19...
Ng8 {[%clk 0:01:18.8]} 20. dxc7 {[%clk 0:01:45.3]} 20... Qd7 {[%clk 0:01:16.2]}
21. Qxc5 {[%clk 0:01:20.6]} 21... Bc6 {[%clk 0:01:15.3]} 22. Rd1 {[%clk
0:00:42.3]} 22... Qxc7 {[%clk 0:01:14.8]} 23. Rd6 {[%clk 0:00:42.3]} 23... Rac8
{[%clk 0:01:09.2]} 24. Rfd1 {[%clk 0:00:42.3]} 24... Qb7 {[%clk 0:00:45.7]} 25.
h3 {[%clk 0:00:28.6]} 25... Rf7 {[%clk 0:00:15.1]} 26. R1d2 {[%clk 0:00:16.8]}
26... Bxg2 {[%clk 0:00:11.2]} 27. Qb6 {[%clk 0:00:15]} 27... Qxb6+ {[%clk
0:00:10.5]} 28. Rxb6 {[%clk 0:00:15.3]} 28... Bxh3 {[%clk 0:00:10.2]} 29. Rxa6
{[%clk 0:00:14.6]} 29... Bg4 {[%clk 0:00:08.5]} 30. Rdd6 {[%clk 0:00:13.8]}
30... Rg7 {[%clk 0:00:08]} 31. a4 {[%clk 0:00:13.2]} 31... Rb8 {[%clk
0:00:03.6]} 32. b3 {[%clk 0:00:12.3]} 32... Rc8 {[%clk 0:00:03.6]} 33. Rac6
{[%clk 0:00:12.1]} 33... Rxc6 {[%clk 0:00:03.6]} 34. Rxc6 {[%clk 0:00:11.7]}
34... Rd7 {[%clk 0:00:04.1]} 35. a5 {[%clk 0:00:10.5]} 35... Ne7 {[%clk
0:00:04]} 36. Rc5 {[%clk 0:00:09.2]} 36... g5 {[%clk 0:00:03.9]} 37. a6 {[%clk
0:00:09.4]} 37... Ra7 {[%clk 0:00:03.3]} 38. b4 {[%clk 0:00:05.5]} 38... Rxa6
{[%clk 0:00:02.7]} 39. Rc7 {[%clk 0:00:05.8]} 39... Re6 {[%clk 0:00:02.8]} 40.
Nd5 {[%clk 0:00:05.5]} 40... Re1+ {[%clk 0:00:02.8]} 41. Kf2 {[%clk 0:00:05.3]}
41... Re2+ {[%clk 0:00:03.5]} 42. Kf1 {[%clk 0:00:05.6]} 42... Kg6 {[%clk
0:00:03]} 43. Nxe7+ {[%clk 0:00:05.2]} 43... Kh5 {[%clk 0:00:02.9]} 44. Nd5
{[%clk 0:00:05]} 44... Rd2 {[%clk 0:00:02.2]} 45. Nf6+ {[%clk 0:00:03.8]} 45...
Kh4 {[%clk 0:00:02.8]} 46. Rc3 {[%clk 0:00:03.3]} 46... gxf4 {[%clk 0:00:02.3]}
47. b5 {[%clk 0:00:03.6]} 47... f3 {[%clk 0:00:01.5]} 48. Ke1 {[%clk 0:00:01.9]}
1-0

[Event "*** Titled Tuesday Blitz"]
[Site "Chess.com"]
[Date "2020.04.28"]
[Round "3"]
[White "Galileo22"]
[Black "1977Ivan"]
[Result "0-1"]
[WhiteElo "2329"]
[BlackElo "2635"]
[TimeControl "180+1"]
[EndTime "10:30:06 PDT"]
[Termination "1977Ivan won by checkmate"]

1. d4 {[%clk 0:03:00.9]} 1... Nf6 {[%clk 0:02:58.1]} 2. Nf3 {[%clk 0:02:59.9]}
2... d6 {[%clk 0:02:57.8]} 3. c4 {[%clk 0:02:54.7]} 3... c6 {[%clk 0:02:56.5]}
4. Nc3 {[%clk 0:02:54.8]} 4... Bg4 {[%clk 0:02:55.3]} 5. Nd2 {[%clk 0:02:47.4]}
5... e5 {[%clk 0:02:51.2]} 6. Nb3 {[%clk 0:02:26.3]} 6... Nbd7 {[%clk
0:02:49.9]} 7. h3 {[%clk 0:02:17.8]} 7... Bh5 {[%clk 0:02:49.3]} 8. g4 {[%clk
0:02:15.4]} 8... Bg6 {[%clk 0:02:49.1]} 9. Bg2 {[%clk 0:02:15.4]} 9... a5 {[%clk
0:02:48.4]} 10. a4 {[%clk 0:02:12.1]} 10... Be7 {[%clk 0:02:41.5]} 11. O-O
{[%clk 0:02:05.3]} 11... h5 {[%clk 0:02:39.7]} 12. g5 {[%clk 0:02:04.1]} 12...
Nh7 {[%clk 0:02:39.7]} 13. h4 {[%clk 0:01:55.1]} 13... O-O {[%clk 0:02:22.8]}
14. e3 {[%clk 0:01:53.7]} 14... f6 {[%clk 0:02:20.5]} 15. f4 {[%clk 0:01:52.7]}
15... fxg5 {[%clk 0:02:17.6]} 16. hxg5 {[%clk 0:01:41.3]} 16... exf4 {[%clk
0:02:15.9]} 17. exf4 {[%clk 0:01:40.2]} 17... Nb6 {[%clk 0:02:09.1]} 18. c5
{[%clk 0:01:15.5]} 18... Nc4 {[%clk 0:01:57.6]} 19. Qe2 {[%clk 0:00:34.4]} 19...
d5 {[%clk 0:01:56.8]} 20. Ra2 {[%clk 0:00:30.9]} 20... Qd7 {[%clk 0:01:53.3]}
21. Na1 {[%clk 0:00:29.5]} 21... Rae8 {[%clk 0:01:51.7]} 22. Qd1 {[%clk
0:00:26]} 22... Bd8 {[%clk 0:01:46.1]} 23. b3 {[%clk 0:00:22.2]} 23... Ne3
{[%clk 0:01:45.3]} 24. Bxe3 {[%clk 0:00:21.5]} 24... Rxe3 {[%clk 0:01:45.9]} 25.
Qc1 {[%clk 0:00:12.2]} 25... Rg3 {[%clk 0:01:42]} 26. Ne2 {[%clk 0:00:07.3]}
26... Rxg2+ {[%clk 0:01:41.3]} 27. Kxg2 {[%clk 0:00:06.8]} 27... Qg4+ {[%clk
0:01:41.9]} 28. Kf2 {[%clk 0:00:06.6]} 28... Nxg5 {[%clk 0:01:40.5]} 29. Ke1
{[%clk 0:00:06.7]} 29... Nf3+ {[%clk 0:01:35.7]} 30. Kd1 {[%clk 0:00:07]} 30...
Re8 {[%clk 0:01:35.5]} 31. Qc3 {[%clk 0:00:06.7]} 31... Be4 {[%clk 0:01:20.8]}
32. Nc2 {[%clk 0:00:06.4]} 32... h4 {[%clk 0:01:19.4]} 33. Ne3 {[%clk
0:00:05.9]} 33... Qh5 {[%clk 0:01:18.8]} 34. Kc1 {[%clk 0:00:04]} 34... Bf6
{[%clk 0:01:13.8]} 35. Kb2 {[%clk 0:00:04.2]} 35... Nh2 {[%clk 0:01:04.3]} 36.
Re1 {[%clk 0:00:03.7]} 36... Qf3 {[%clk 0:00:57.5]} 37. Ka3 {[%clk 0:00:03.2]}
37... Ng4 {[%clk 0:00:34.4]} 38. Nxg4 {[%clk 0:00:01.9]} 38... Qxg4 {[%clk
0:00:34.5]} 39. Nc1 {[%clk 0:00:01.9]} 39... Qxf4 {[%clk 0:00:31.1]} 40. Re3
{[%clk 0:00:02.8]} 40... Rf8 {[%clk 0:00:27]} 41. Rae2 {[%clk 0:00:03.7]} 41...
Bf5 {[%clk 0:00:19.9]} 42. Nd3 {[%clk 0:00:04.6]} 42... Qxd4 {[%clk 0:00:19.3]}
43. Qxd4 {[%clk 0:00:04.1]} 43... Bxd4 {[%clk 0:00:19.8]} 44. Rf3 {[%clk
0:00:04.9]} 44... h3 {[%clk 0:00:19.5]} 45. Rxf5 {[%clk 0:00:04.3]} 45... Rxf5
{[%clk 0:00:18.8]} 46. Re8+ {[%clk 0:00:05.2]} 46... Kf7 {[%clk 0:00:18]} 47. b4
{[%clk 0:00:06.1]} 47... Kxe8 {[%clk 0:00:17.4]} 48. bxa5 {[%clk 0:00:06.4]}
48... Rf3 {[%clk 0:00:17.4]} 49. a6 {[%clk 0:00:07.3]} 49... Rxd3+ {[%clk
0:00:17.7]} 50. Kb4 {[%clk 0:00:08.2]} 50... bxa6 {[%clk 0:00:17.6]} 51. Ka5
{[%clk 0:00:09.1]} 51... h2 {[%clk 0:00:17]} 52. Kb6 {[%clk 0:00:09.3]} 52...
h1=Q {[%clk 0:00:16.3]} 53. Ka5 {[%clk 0:00:10.2]} 53... Qe1+ {[%clk 0:00:15.4]}
54. Kb6 {[%clk 0:00:10.5]} 54... Bxc5+ {[%clk 0:00:15.8]} 55. Kb7 {[%clk
0:00:10.7]} 55... Qb4+ {[%clk 0:00:15.4]} 56. Kc7 {[%clk 0:00:11.6]} 56... Qb6+
{[%clk 0:00:15.1]} 57. Kc8 {[%clk 0:00:11.7]} 57... Bd6 {[%clk 0:00:14.8]} 58.
a5 {[%clk 0:00:12.6]} 58... Qc7# {[%clk 0:00:15.1]} 0-1